bitfinex/quotes_ETHUSD_20220220
["timestamp","ask_amount","ask_price","bid_price","bid_amount"]
[1645335524759,1.1976,2682.9,2682.7,3.5]
[1645335524962,1.1976,2682.9,2682.7,4.43262]
[1645335525159,1.1976,2682.9,2682.7,3.5]
[1645335525812,1.1976,2682.9,2682.8,1.12277207]
[1645335526015,1.1976,2683.7,2682.8,1.12277207]
[1645335526220,1.1976,2683.7,2683.6,1.12252202]
[1645335535013,0.00341578,2683.8,2683.6,1.12252202]
[1645335535614,0.93276,2683.9,2683.6,1.12252202]
[1645335535814,0.00341577,2683.8,2683.6,1.12252202]
[1645335536867,1.1976,2684.0,2683.6,1.12252202]
[1645335537064,0.00344876,2683.8,2683.6,1.12252202]
[1645335537366,0.00344876,2683.8,2683.6,2.98711612]
[1645335538065,1.1976,2684.0,2683.6,1.12252202]
[1645335538265,0.00344876,2683.8,2683.6,1.12252202]
[1645335538862,0.01379297,2684.2,2683.6,1.12252202]
[1645335539065,0.01379297,2684.2,2683.7,3.58937]
[1645335539268,0.1862,2684.8,2683.7,3.58937]
[1645335539465,1.0,2684.9,2683.8,0.537]
[1645335539882,4.6862,2685.0,2683.8,0.537]
[1645335540068,0.1862,2685.0,2684.0,0.93228]
[1645335540268,7.32,2685.1,2684.1,0.537]
[1645335540515,7.32,2685.1,2684.2,3.5]
[1645335540715,7.32,2685.1,2684.3,0.537]
[1645335540716,0.00344118,2684.6,2684.3,0.537]
[1645335540917,0.00344118,2684.6,2684.4,0.537]
[1645335541115,0.00344118,2684.6,2684.5,1.68231713]
[1645335541715,7.32,2685.1,2684.5,1.68231713]
[1645335541924,0.00344117,2684.7,2684.5,1.68231713]
[1645335542915,7.33376261,2685.1,2684.5,1.68231713]
[1645335542916,7.32,2685.1,2684.5,1.68231713]
[1645335543117,0.00344116,2684.7,2684.5,1.68231713]
[1645335543317,0.00344116,2684.7,2684.5,1.14531713]
[1645335544119,7.32,2685.1,2684.5,1.14531713]
[1645335544367,0.00344225,2684.7,2684.5,1.14531713]
[1645335544767,7.28720917,2685.1,2684.5,1.14531713]
[1645335544967,0.01376692,2685.1,2684.5,1.14531713]
[1645335545266,7.32,2685.3,2685.1,0.93203279]
[1645335545467,9.18457,2685.3,2685.1,0.93203279]
[1645335545888,4.48385742,2685.2,2683.9,0.1862]
[1645335546071,0.9324,2684.9,2683.7,2.657]
[1645335546273,1.5324,2684.9,2683.7,2.657]
[1645335546469,0.6,2684.9,2683.7,2.657]
[1645335546770,1.6,2684.9,2683.7,2.657]
[1645335546969,0.93255,2684.5,2684.2,0.97935567]
[1645335547173,1.8651,2684.6,2684.2,0.97935567]
[1645335547174,0.6,2684.9,2684.2,0.97935567]
[1645335547367,0.1862,2685.0,2684.2,0.97935567]
[1645335547368,0.7862,2685.0,2684.2,0.97935567]
[1645335547569,0.1862,2684.9,2684.2,0.97935567]
[1645335548319,0.93249,2684.5,2684.2,0.97935567]
[1645335548924,1.93249,2684.5,2684.2,0.97935567]
[1645335549321,1.93249,2684.5,2683.7,2.657]
[1645335549322,2.53249,2684.5,2683.7,2.657]
[1645335549526,0.93263,2684.3,2683.2,1.1973]
[1645335549727,3.67604535,2684.2,2683.3,1.5845529]
[1645335549922,1.86542,2684.1,2683.3,1.5845529]
[1645335550121,2.86542,2684.1,2683.3,1.5845529]
[1645335550324,1.86542,2684.1,2683.9,1.04361874]
[1645335550925,0.93271,2684.0,2683.9,1.04361874]
[1645335551325,1.93271,2684.0,2683.9,1.04361874]
[1645335551530,0.93271,2684.0,2683.9,1.04361874]
[1645335551775,1.0,2684.0,2683.9,1.04361874]
[1645335552164,1.0,2684.5,2683.9,1.04361874]
[1645335552370,0.93254,2684.3,2683.9,1.04361874]
[1645335552567,0.3,2684.3,2683.9,1.04361874]
[1645335552769,5.7693,2684.8,2683.9,1.04361874]
[1645335552770,0.1862,2684.7,2683.9,1.04361874]
[1645335552967,5.7728616,2684.8,2684.0,5.08435213]
[1645335552968,0.0035616,2684.8,2684.0,5.08435213]
[1645335553165,0.0035616,2684.8,2684.1,1.58435213]
[1645335553365,0.0035616,2684.8,2684.5,1.14881161]
[1645335553765,0.93235,2684.9,2684.5,1.14881161]
[1645335553971,0.0034457,2684.8,2684.5,1.14881161]
[1645335554466,1.8683757,2684.8,2684.5,1.14881161]
[1645335554870,2.86493,2684.8,2684.5,1.14881161]
[1645335555071,1.8683759,2684.8,2684.5,1.14881161]
[1645335555268,2.8683759,2684.8,2684.5,1.14881161]
[1645335556115,2.86493,2684.8,2684.5,1.14881161]
[1645335556414,1.8683759,2684.8,2684.5,1.14881161]
[1645335556615,1.8683759,2684.8,2684.0,2.8771]
[1645335556814,1.8683759,2684.8,2684.1,1.58424247]
[1645335557215,1.86493,2684.8,2684.1,1.58424247]
[1645335557616,1.86849187,2684.8,2684.5,0.8728109]
[1645335558416,1.86493,2684.8,2684.5,0.8728109]
[1645335558816,1.86849209,2684.8,2684.5,0.8728109]
[1645335559662,1.86493,2684.8,2684.5,0.8728109]
[1645335559863,1.86849209,2684.8,2684.5,0.8728109]
[1645335560864,1.86493,2684.8,2684.5,0.8728109]
[1645335561063,1.86849209,2684.8,2684.5,0.8728109]
[1645335562165,1.86493,2684.8,2684.5,0.8728109]
[1645335562366,1.86849209,2684.8,2684.5,0.8728109]
[1645335563211,1.86493,2684.8,2684.5,0.8728109]
[1645335563416,0.93235,2684.9,2684.5,0.8728109]
[1645335563610,0.00356209,2684.8,2684.5,0.8728109]
[1645335564411,0.93235,2684.9,2684.5,0.8728109]
[1645335564712,0.00356209,2684.8,2684.5,0.8728109]
[1645335565713,0.93235,2684.9,2684.0,2.8771]
[1645335565914,0.00356209,2684.8,2684.0,2.8771]
[1645335566316,0.00356209,2684.8,2684.1,3.5]
[1645335566617,0.00356209,2684.8,2684.2,3.05302938]
[1645335566871,7.32,2685.4,2684.3,1.58390548]
[1645335567070,7.32,2685.4,2684.4,0.93198]
[1645335567264,0.00356187,2684.8,2684.5,0.537]
[1645335567463,0.00356187,2684.8,2684.6,1.14125171]
[1645335567668,0.00356187,2684.8,2684.6,1.67825171]
[1645335568067,7.32,2685.4,2684.6,1.67825171]
[1645335568265,0.00356215,2684.8,2684.7,0.93196]
[1645335568469,0.00356215,2684.8,2684.6,1.67825171]
[1645335568666,0.00356215,2684.8,2684.6,1.14125171]
[1645335568866,0.00356215,2684.8,2684.3,0.537]
[1645335569066,0.00356215,2684.8,2684.1,1.1482]
[1645335569267,7.32,2685.0,2684.1,1.1482]
[1645335569767,0.00356198,2684.8,2684.1,1.1482]
[1645335569966,0.00356198,2684.8,2684.5,1.09073853]
[1645335570511,1.0,2685.1,2684.5,1.09073853]
[1645335570712,2.06102412,2685.2,2684.5,1.09073853]
[1645335570713,0.00356209,2684.8,2684.5,1.09073853]
[1645335571514,0.00356209,2684.8,2684.1,1.1482]
[1645335571713,0.93233,2684.9,2684.0,2.8771]
[1645335571912,0.00356209,2684.8,2684.0,2.8771]
[1645335572112,0.00356209,2684.8,2684.0,3.80937]
[1645335572718,0.00356209,2684.8,2684.0,5.6736001]
[1645335572912,1.0,2685.4,2684.0,5.6736001]
[1645335573113,0.00356182,2684.8,2684.0,5.6736001]
[1645335573713,0.00356182,2684.8,2684.6,0.85232864]
[1645335574015,1.11380703,2685.3,2684.6,0.85232864]
[1645335574269,0.00356215,2684.8,2684.6,0.85232864]
[1645335575282,0.93218,2685.4,2684.6,0.85232864]
[1645335575565,0.00356215,2684.8,2684.3,0.3]
[1645335575764,0.00356215,2684.8,2684.4,0.9110365]
[1645335576167,0.00356215,2684.8,2684.4,1.8430847]
[1645335576565,7.32,2685.5,2684.5,0.93207]
[1645335576765,0.00356204,2684.8,2684.4,0.9110365]
[1645335577764,3.5,2685.4,2684.4,0.9110365]
[1645335578022,0.01424654,2685.1,2685.0,1.06694328]
[1645335578819,1.93218,2685.4,2685.0,1.06694328]
[1645335579020,0.93218,2685.4,2685.0,1.06694328]
[1645335579321,0.00356206,2685.2,2685.0,1.06694328]
[1645335580124,7.32,2685.5,2685.0,1.06694328]
[1645335580528,0.00356205,2685.2,2685.0,1.06694328]
[1645335580922,0.00356205,2685.2,2684.4,3.5]
[1645335581122,0.00356205,2685.2,2684.2,3.3099]
[1645335581123,0.00356205,2685.2,2684.2,7.1099]
[1645335581329,7.32,2685.5,2684.2,7.4099]
[1645335581763,0.00356212,2684.9,2684.2,7.4099]
[1645335582165,0.00356212,2684.9,2684.8,1.01900516]
[1645335582563,8.25218,2685.5,2684.8,1.01900516]
[1645335582764,0.00329222,2685.0,2684.8,1.01900516]
[1645335583665,8.21863911,2685.5,2684.9,20.5]
[1645335584066,0.0032922,2685.0,2684.9,20.5]
[1645335584470,9.22e-05,2685.0,2684.9,20.5]
[1645335584868,7.32,2685.5,2684.9,20.5]
[1645335585719,7.27,2685.5,2685.4,1.16219594]
[1645335585916,7.32,2685.9,2685.4,1.16219594]
[1645335587620,0.00289324,2685.8,2685.4,1.16219594]
[1645335588418,7.32,2685.9,2685.4,1.16219594]
[1645335588721,0.00356192,2685.7,2685.4,1.16219594]
[1645335588919,0.00356192,2685.7,2685.0,3.2619]
[1645335589120,0.00356192,2685.7,2685.0,2.7249]
[1645335589364,0.00356192,2685.7,2685.0,6.2249]
[1645335589764,1.0,2685.8,2685.0,6.2249]
[1645335589962,0.00356199,2685.5,2685.0,6.2249]
[1645335590162,0.00356199,2685.5,2685.3,1.15968551]
[1645335590962,1.0,2685.8,2685.3,1.15968551]
[1645335591165,0.00356197,2685.5,2685.3,1.15968551]
[1645335592162,1.0,2685.8,2685.3,1.15968551]
[1645335592362,0.00356197,2685.5,2685.3,1.15968551]
[1645335593326,7.32,2685.9,2685.3,1.15968551]
[1645335593722,7.32,2685.9,2685.2,3.5]
[1645335593723,0.00356197,2685.5,2685.2,3.5]
[1645335593922,0.00356197,2685.5,2685.2,4.4317751]
[1645335594524,7.32,2685.9,2685.3,0.93175]
[1645335594725,0.00356199,2685.5,2685.4,3.5]
[1645335594923,0.00356199,2685.5,2685.4,0.91923461]
[1645335595725,7.32,2685.9,2685.4,0.91923461]
[1645335595930,0.00356196,2685.6,2685.4,0.91923461]
[1645335596877,7.32,2685.9,2685.4,0.91923461]
[1645335597174,0.00356195,2685.6,2685.4,0.91923461]
[1645335598074,7.32,2685.9,2685.4,0.91923461]
[1645335598276,0.00356195,2685.6,2685.4,0.91923461]
[1645335599279,7.32,2685.9,2685.4,0.91923461]
[1645335599479,0.00356195,2685.6,2685.4,0.91923461]
[1645335600513,7.32,2685.9,2685.4,0.91923461]
[1645335600714,0.00356195,2685.6,2685.4,0.91923461]
[1645335601714,7.32,2685.9,2685.4,0.91923461]
[1645335601915,0.00356195,2685.6,2685.4,0.91923461]
[1645335602117,0.00356195,2685.6,2685.4,1.45623461]
[1645335602321,0.00356195,2685.6,2685.5,3.5]
[1645335602528,6.195e-05,2685.6,2685.5,3.5]
[1645335602816,6.195e-05,2685.6,2685.5,4.037]
[1645335603015,7.32,2685.9,2685.5,5.9001702]
[1645335604466,7.31894456,2685.9,2685.5,5.9001702]
[1645335604671,7.31894456,2685.9,2685.5,7.7633402]
[1645335606072,7.31894456,2685.9,2685.6,0.9315769]
[1645335606280,7.32,2686.2,2685.9,1.11736539]
[1645335606473,7.32,2686.2,2686.0,0.537]
[1645335606879,7.32,2686.2,2685.9,0.02360447]
[1645335607073,7.32,2686.2,2686.0,0.537]
[1645335607476,7.32,2686.2,2686.1,3.5]
[1645335607674,7.32,2686.2,2686.1,4.037]
[1645335608117,7.32356351,2686.2,2686.1,4.037]
[1645335608924,7.32724248,2687.1,2686.1,4.037]
[1645335609119,7.32724248,2687.1,2686.1,0.537]
[1645335609120,0.00288993,2686.3,2686.1,0.537]
[1645335610121,0.08611616,2687.0,2686.2,1.09858844]
[1645335610319,0.01425864,2686.7,2686.3,0.537]
[1645335611319,7.41335864,2687.1,2686.3,0.537]
[1645335611524,0.00356512,2686.6,2686.3,0.537]
[1645335612167,0.00356512,2686.6,2686.3,4.037]
[1645335612568,0.00724248,2686.9,2686.3,0.537]
[1645335612867,0.00356513,2686.6,2686.3,4.037]
[1645335613068,0.00356513,2686.6,2686.3,4.337]
[1645335613267,0.00356513,2686.6,2686.3,4.0378]
[1645335613867,0.00724248,2687.1,2686.3,4.0378]
[1645335614070,0.00356513,2686.6,2686.3,4.0378]
[1645335614668,0.00356513,2686.6,2686.3,0.5378]
[1645335614868,0.00356513,2686.6,2686.3,4.0378]
[1645335615067,0.00724248,2687.1,2686.7,0.80812506]
[1645335615269,7.32,2687.2,2686.7,0.537]
[1645335615270,0.01425839,2687.0,2686.7,0.537]
[1645335615519,0.01425839,2687.0,2686.3,0.0008]
[1645335615724,0.93157,2686.9,2686.3,0.0008]
[1645335615925,5.0,2686.7,2686.3,0.0008]
[1645335616127,5.0,2686.4,2686.3,0.0008]
[1645335616324,1.10225196,2685.4,2684.7,2.29713406]
[1645335616520,2.00715196,2685.4,2684.7,2.29713406]
[1645335616723,1.83699,2685.4,2684.7,1.12273406]
[1645335617521,1.5027,2685.5,2684.7,1.12273406]
[1645335617726,1.0,2686.2,2684.7,1.137]
[1645335617923,1.0,2686.2,2684.8,1.58320429]
[1645335618119,1.0,2686.2,2684.9,0.537]
[1645335618719,1.0,2686.2,2685.5,1.03405832]
[1645335618923,0.00356469,2685.7,2685.5,1.03405832]
[1645335619127,0.3,2686.4,2685.5,1.03405832]
[1645335619128,0.186,2686.6,2685.7,59.0]
[1645335619381,0.186,2687.0,2685.8,20.347]
[1645335619575,0.70774311,2687.1,2685.9,0.3]
[1645335619776,0.70774311,2687.1,2685.8,20.647]
[1645335619777,0.70774311,2687.1,2686.0,0.537]
[1645335619979,0.186,2687.0,2685.7,0.537]
[1645335620176,1.06155547,2686.8,2686.0,0.87265518]
[1645335620377,0.186,2686.7,2685.6,1.1951]
[1645335621175,1.24755547,2686.8,2685.6,1.1951]
[1645335621376,3.5,2686.7,2685.6,1.1951]
[1645335621574,1.0138798,2686.3,2685.6,1.1951]
[1645335621774,1.0138798,2686.3,2685.6,0.756358]
[1645335622579,3.5,2686.2,2685.6,0.756358]
[1645335622776,1.11784,2686.1,2685.6,0.756358]
[1645335623024,3.5,2686.0,2685.6,0.756358]
[1645335623226,0.186,2685.9,2685.6,0.756358]
[1645335623525,1.0,2686.1,2685.6,0.756358]
[1645335623526,3.686,2686.0,2685.6,0.756358]
[1645335623724,3.986,2686.0,2685.7,0.00230172]
[1645335623924,2.97004933,2685.9,2685.7,0.00230172]
[1645335624528,2.97004933,2685.9,2685.6,0.756358]
[1645335624924,2.97004933,2685.9,2685.7,0.00230172]
[1645335625724,2.97004933,2685.9,2685.6,0.756358]
[1645335625937,8.34134933,2685.9,2685.6,0.756358]
[1645335626128,8.34134933,2685.9,2683.9,2.57618342]
[1645335626129,7.23559,2685.7,2684.0,3.8149]
[1645335626328,7.23559,2685.7,2683.6,0.71224342]
[1645335626329,0.93246,2684.8,2683.6,0.71224342]
[1645335626532,0.93253,2684.4,2683.4,1.1677]
[1645335626779,0.3,2684.4,2683.5,1.58401524]
[1645335627175,1.06501786,2684.3,2683.5,2.62986951]
[1645335627373,1.06501786,2684.3,2683.5,1.04585427]
[1645335627974,0.93255,2684.2,2683.5,1.04585427]
[1645335628572,4.43255,2684.2,2683.4,1.1677]
[1645335628777,4.43255,2684.2,2683.0,3.03]
[1645335628778,1.0,2684.1,2683.0,3.03]
[1645335628980,0.93279,2683.8,2682.6,1.1832]
[1645335629175,3.5,2683.7,2682.7,1.58435817]
[1645335629678,0.97141982,2683.3,2682.7,1.58435817]
[1645335629873,0.97141982,2683.3,2682.5,1.2136]
[1645335630273,0.97141982,2683.3,2682.6,1.58448446]
[1645335630518,1.27141982,2683.3,2682.1,0.1863]
[1645335630819,0.5,2683.0,2682.8,0.0022984]
[1645335631118,1.8659,2683.2,2682.8,0.0022984]
[1645335631517,2.8659,2683.2,2682.8,0.0022984]
[1645335631918,2.8659,2683.2,2682.1,1.58450252]
[1645335632120,6.3659,2683.2,2682.9,0.00229836]
[1645335632324,6.5521,2683.2,2682.9,0.00229836]
[1645335633119,0.87513476,2682.4,2682.1,1.58465528]
[1645335633322,0.94754442,2682.6,2682.4,0.81516122]
[1645335633520,3.5,2683.0,2682.4,0.81516122]
[1645335633820,1.0,2683.1,2682.4,0.81516122]
[1645335634669,1.19480486,2682.9,2682.4,0.8151611]
[1645335634876,2.12778486,2682.9,2682.4,0.8151611]
[1645335636872,2.12778486,2682.9,2682.5,0.00229866]
[1645335637876,2.12778486,2682.9,2682.4,1.5715191]
[1645335638126,3.5,2682.8,2682.6,0.00229861]
[1645335638324,1.0,2682.7,2682.6,0.00229861]
[1645335638524,4.6862,2682.7,2682.6,0.00229861]
[1645335638724,0.93331,2682.5,2682.4,1.5715191]
[1645335638926,4.43331,2682.5,2682.4,1.5715191]
[1645335639427,1.0,2682.7,2682.4,1.5715191]
[1645335639636,1.19480486,2682.9,2682.4,1.5715191]
[1645335642976,1.19480486,2682.9,2682.5,0.00229295]
[1645335643774,1.19480486,2682.9,2682.4,1.5715191]
[1645335644176,0.93284,2683.2,2682.5,0.00229295]
[1645335644377,1.1862,2683.4,2682.5,0.00229295]
[1645335644583,1.0,2683.4,2682.5,3.1628922]
[1645335644778,0.1197754,2683.5,2682.6,0.537]
[1645335645084,3.5,2684.0,2682.6,7.549]
[1645335645276,1.19167406,2683.9,2682.6,7.549]
[1645335645523,1.19167406,2683.9,2683.2,1.1764912]
[1645335645821,1.19167406,2683.9,2683.2,0.537]
[1645335646719,1.19167406,2683.9,2683.2,1.67454782]
[1645335648323,1.0,2684.3,2683.2,1.67454782]
[1645335648525,3.78345,2684.8,2683.2,1.67454782]
[1645335648526,9.0978,2684.6,2683.2,1.67454782]
[1645335648725,9.0978,2684.6,2683.2,16.14750672]
[1645335648924,9.0978,2684.6,2683.2,16.74750672]
[1645335649381,1.08113045,2684.5,2683.9,1.18975949]
[1645335649584,1.08113045,2684.5,2683.8,0.537]
[1645335650386,1.38113045,2684.5,2683.4,0.537]
[1645335650583,1.17589523,2683.9,2683.4,0.537]
[1645335650782,1.17589523,2683.9,2683.2,0.95283293]
[1645335655025,0.9326,2684.2,2683.2,0.95283293]
[1645335655326,0.1862,2684.3,2683.3,3.69625604]
[1645335655533,4.0467,2684.7,2684.2,1.68962713]
[1645335655928,1.0,2684.7,2684.2,1.68962713]
[1645335656327,0.9248616,2684.6,2684.2,1.68962713]
[1645335656527,0.93238,2684.9,2684.2,1.68962713]
[1645335656771,1.1862,2685.0,2684.2,2.22662713]
[1645335657174,0.1862,2685.0,2684.2,2.22662713]
[1645335657572,0.1862,2685.0,2684.7,1.0422288]
[1645335657774,0.1862,2685.3,2684.7,1.0422288]
[1645335657973,0.1862,2685.4,2684.4,0.537]
[1645335658176,1.56719533,2685.5,2684.4,0.537]
[1645335658374,0.55343439,2685.5,2684.4,0.537]
[1645335658675,0.56718448,2685.5,2684.4,0.037]
[1645335658874,0.56718448,2685.5,2684.4,0.96902]
[1645335659275,1.14345152,2685.4,2684.4,0.037]
[1645335659776,0.0137503,2685.5,2684.4,0.037]
[1645335659976,0.0137503,2685.5,2684.5,0.93191]
[1645335660176,0.0137503,2685.5,2684.6,0.537]
[1645335660846,0.85842777,2685.4,2684.7,0.95139855]
[1645335661055,0.85842777,2685.4,2684.8,0.537]
[1645335661543,3.06055037,2685.6,2684.8,0.537]
[1645335661741,0.01375037,2685.6,2684.8,0.537]
[1645335661941,1.3,2685.8,2684.8,0.537]
[1645335662241,1.6,2685.8,2684.8,0.537]
[1645335662645,1.43199,2686.0,2685.2,1.15642837]
[1645335662844,0.5,2686.0,2685.2,1.69342837]
[1645335663643,0.1197754,2686.2,2685.2,1.69342837]
[1645335663842,0.1197754,2686.2,2685.2,2.62512837]
[1645335664043,0.1197754,2686.2,2685.2,3.55681837]
[1645335664487,0.00343805,2685.8,2685.2,3.55681837]
[1645335664987,0.00343805,2685.8,2685.3,3.5]
[1645335665288,0.00343805,2685.8,2685.4,0.537]
[1645335665490,0.1197754,2686.2,2685.4,0.537]
[1645335665787,0.00348253,2685.7,2685.3,3.5]
[1645335665993,0.00348253,2685.7,2685.2,1.15642837]
[1645335666186,0.00348253,2685.7,2685.2,4.65642837]
[1645335666492,0.08718597,2686.2,2685.7,0.95074948]
[1645335666692,3.2222,2686.7,2685.8,3.5]
[1645335666889,3.2222,2686.7,2685.8,4.037]
[1645335667087,12.19214311,2687.1,2685.8,4.037]
[1645335667294,12.19214311,2687.1,2685.8,0.537]
[1645335667295,3.75984311,2687.1,2685.8,0.537]
[1645335667491,1.07275693,2686.7,2685.8,0.537]
[1645335667894,1.67275693,2686.7,2685.8,0.537]
[1645335668122,1.37275693,2686.7,2685.8,4.037]
[1645335668423,1.37275693,2686.7,2685.8,0.537]
[1645335668822,2.60448693,2686.7,2685.8,0.537]
[1645335669223,1.0,2686.6,2685.8,0.537]
[1645335669425,0.00356398,2686.4,2685.9,0.00233354]
[1645335670424,1.0,2686.6,2685.4,5.2787]
[1645335670622,0.00286536,2686.3,2685.8,0.756358]
[1645335670825,0.13773457,2686.3,2685.8,0.756358]
[1645335671421,0.13486921,2686.3,2685.8,0.756358]
[1645335671874,0.00286531,2686.2,2685.8,0.756358]
[1645335672670,0.13486921,2686.3,2685.8,0.756358]
[1645335673071,0.00286525,2686.2,2685.8,0.756358]
[1645335673670,0.00286525,2686.2,2686.1,1.0175765]
[1645335673877,1.07275693,2686.7,2685.9,3.5]
[1645335674272,0.13843444,2686.2,2685.9,0.002338]
[1645335674473,0.13843444,2686.2,2685.9,3.502338]
[1645335674671,0.13843444,2686.2,2685.9,0.002338]
[1645335675073,0.13843444,2686.2,2685.8,0.756358]
[1645335675274,0.13486921,2686.2,2685.8,0.756358]
[1645335675525,0.1384345,2686.2,2685.9,0.00233796]
[1645335676329,0.13486921,2686.2,2685.8,1.73255175]
[1645335676529,0.1384345,2686.2,2685.9,0.00233796]
[1645335677130,0.01425758,2686.9,2686.6,1.6881715]
[1645335677527,0.79492908,2687.4,2686.6,1.6881715]
[1645335677729,0.186,2687.5,2686.7,0.537]
[1645335677933,10.4885,2687.6,2686.7,0.537]
[1645335678129,10.4885,2687.6,2687.0,1.03312154]
[1645335678334,7.32,2687.6,2686.9,0.537]
[1645335678933,7.32,2687.6,2686.6,1.6881715]
[1645335678934,10.82,2687.6,2686.6,1.6881715]
[1645335679142,0.186,2687.5,2686.6,1.6881715]
[1645335679392,1.0530858,2686.7,2686.6,1.6881715]
[1645335679775,0.93155,2687.1,2686.6,1.6881715]
[1645335679975,0.00720627,2687.1,2686.6,1.6881715]
[1645335680173,1.00720627,2687.3,2686.6,1.6881715]
[1645335680973,1.93868627,2687.3,2686.6,1.6881715]
[1645335681178,1.00878516,2686.9,2686.6,1.6881715]
[1645335681583,1.30878516,2686.9,2686.6,1.6881715]
[1645335681784,1.60878516,2686.9,2686.6,1.6881715]
[1645335681992,16.5,2686.7,2686.0,0.00208379]
[1645335682177,0.723,2686.6,2686.0,0.00208379]
[1645335682376,2.33020627,2686.6,2685.8,0.756358]
[1645335682578,0.86024933,2685.9,2685.8,0.756358]
[1645335683024,4.36956827,2686.6,2685.8,0.756358]
[1645335683225,0.93187,2686.4,2685.8,0.756358]
[1645335683426,0.93907627,2686.4,2685.8,0.756358]
[1645335684028,3.5,2686.3,2685.8,0.756358]
[1645335684429,0.932,2686.1,2685.8,0.756358]
[1645335684625,0.84952026,2685.9,2685.8,0.756358]
[1645335686027,0.932,2686.1,2685.8,0.756358]
[1645335687572,0.932,2686.1,2685.8,0.7584038]
[1645335688173,1.0,2686.1,2685.8,0.7584038]
[1645335688372,0.88635682,2686.2,2685.8,0.756358]
[1645335688571,0.88635682,2686.2,2685.8,0.7584038]
[1645335689474,0.88635682,2686.2,2685.8,0.756358]
[1645335689873,1.81822682,2686.2,2685.9,0.00188662]
[1645335690823,1.81822682,2686.2,2685.8,0.756358]
[1645335691022,1.81822682,2686.2,2685.9,0.00188658]
[1645335691421,2.81822682,2686.2,2685.9,0.00188658]
[1645335692024,2.81822682,2686.2,2685.8,0.756358]
[1645335692228,2.81822682,2686.2,2685.9,0.00188658]
[1645335693225,2.81822682,2686.2,2685.8,0.756358]
[1645335693425,1.93187,2686.2,2685.9,0.00192239]
[1645335693626,1.0,2686.2,2685.9,0.00192239]
[1645335693828,0.00343113,2686.3,2685.9,0.00192239]
[1645335694478,0.00720627,2686.8,2685.9,1.58284774]
[1645335694677,0.00343118,2686.3,2686.0,1.14908528]
[1645335695474,0.00343118,2686.3,2686.0,0.00192235]
[1645335695675,0.93174,2686.5,2685.8,0.756358]
[1645335695874,0.00343123,2686.3,2686.0,0.00192234]
[1645335696874,0.93174,2686.5,2685.8,0.756358]
[1645335697074,1.09174792,2686.2,2686.0,0.00191428]
[1645335697274,0.00342882,2686.3,2686.2,0.59665859]
[1645335698131,2.07770769,2686.5,2686.2,0.59665859]
[1645335698535,0.00342886,2686.4,2686.2,0.59665859]
[1645335699233,2.07770769,2686.5,2686.2,0.59665859]
[1645335699432,0.00342885,2686.4,2686.2,0.59665859]
[1645335700531,2.14596769,2686.5,2686.2,0.59665859]
[1645335700732,0.00342939,2686.4,2686.2,0.59665859]
[1645335700934,0.93522939,2686.4,2686.2,0.59665859]
[1645335701635,4.4318,2686.4,2686.2,0.59665859]
[1645335701877,1.0,2686.3,2686.2,0.59665859]
[1645335702273,2.23522939,2686.4,2686.2,0.59665859]
[1645335702677,1.23522939,2686.4,2686.2,0.59665859]
[1645335702975,2.2318,2686.4,2686.2,0.59665859]
[1645335703175,1.23522939,2686.4,2686.2,0.59665859]
[1645335703373,2.23522939,2686.4,2686.2,0.59665859]
[1645335703575,1.23522939,2686.4,2686.2,0.59665859]
[1645335703775,2.23522939,2686.4,2686.2,0.59665859]
[1645335704076,1.2318,2686.4,2686.2,0.59665859]
[1645335704275,2.23522927,2686.4,2686.2,0.59665859]
[1645335704475,1.23522927,2686.4,2686.2,0.59665859]
[1645335704776,2.23522927,2686.4,2686.2,0.59665859]
[1645335704975,1.23522927,2686.4,2686.2,0.59665859]
[1645335705181,2.2318,2686.4,2686.2,0.59665859]
[1645335705377,2.53522927,2686.4,2686.2,0.59665859]
[1645335706422,2.5318,2686.4,2686.2,0.59665859]
[1645335706647,2.53522927,2686.4,2686.2,0.59665859]
[1645335707625,2.5318,2686.4,2686.2,0.59665859]
[1645335707827,2.5352293,2686.4,2686.2,0.59665859]
[1645335708825,3.4637624,2686.4,2686.2,0.59665859]
[1645335709125,3.4671917,2686.4,2686.2,0.59665859]
[1645335709575,3.5,2686.3,2686.2,0.59665859]
[1645335709775,4.5,2686.3,2686.2,0.59665859]
[1645335709975,1.0,2686.3,2686.2,0.59665859]
[1645335710380,2.53522931,2686.4,2686.2,0.59665859]
[1645335711179,2.5318,2686.4,2686.2,0.59665859]
[1645335711379,2.53522929,2686.4,2686.2,0.59665859]
[1645335712479,2.5318,2686.4,2686.2,0.59665859]
[1645335712680,2.53522929,2686.4,2686.2,0.59665859]
[1645335713527,2.5318,2686.4,2686.2,0.59665859]
[1645335713931,2.53522929,2686.4,2686.2,0.59665859]
[1645335714829,2.5318,2686.4,2686.2,0.59665859]
[1645335715029,2.53522929,2686.4,2686.2,0.59665859]
[1645335715630,2.23522929,2686.4,2686.2,0.59665859]
[1645335715930,2.5318,2686.4,2686.2,0.59665859]
[1645335716230,2.53522929,2686.4,2686.2,0.59665859]
[1645335717277,2.5318,2686.4,2686.2,0.59665859]
[1645335717480,2.53522929,2686.4,2686.2,0.59665859]
[1645335718290,2.23522929,2686.4,2686.2,0.59665859]
[1645335718477,2.2318,2686.4,2686.2,0.59665859]
[1645335718682,2.53522929,2686.4,2686.2,0.59665859]
[1645335719681,2.5318,2686.4,2686.2,0.59665859]
[1645335719880,2.53522929,2686.4,2686.2,0.59665859]
[1645335720935,2.5318,2686.4,2686.2,0.59665859]
[1645335721133,2.53522929,2686.4,2686.2,0.59665859]
[1645335721333,2.53522929,2686.4,2686.2,0.59580666]
[1645335721935,2.5318,2686.4,2686.2,0.59580666]
[1645335722336,2.53522929,2686.4,2686.2,0.59580666]
[1645335723339,2.5318,2686.4,2686.2,0.59580666]
[1645335723535,2.53522929,2686.4,2686.2,0.59580666]
[1645335724375,2.5318,2686.4,2686.2,0.59580666]
[1645335724575,16.5,2686.3,2686.0,0.00191576]
[1645335724779,5.0,2686.1,2686.0,0.00191576]
[1645335724978,16.5,2686.0,2685.8,0.17880448]
[1645335725180,6.46921,2685.9,2685.8,0.17880448]
[1645335725377,16.5,2685.8,2684.8,1.1787]